bitfinex-derivatives/quotes_ETHF0:USTF0_20250730
["timestamp","ask_amount","ask_price","bid_price","bid_amount"]
[1753879594929,3.7879,3770.5,3770.4,6.82159]
[1753879595129,47.9859,3770.5,3770.4,6.2911]
[1753879595330,48.2107,3770.5,3770.4,6.2911]
[1753879595730,40.8,3770.5,3770.4,8.0309]
[1753879595924,40.8,3770.5,3770.4,9.4989]
[1753879596135,40.8,3770.5,3770.4,6.2911]
[1753879596533,22.7088,3771.0,3770.9,2.5366]
[1753879596534,4.8156,3771.0,3770.9,2.5366]
[1753879596732,7.1859,3771.0,3770.9,6.2911]
[1753879597027,48.2107,3771.0,3770.9,6.2911]
[1753879597233,48.2107,3771.0,3770.9,5.35352]
[1753879597633,48.2107,3771.0,3770.9,4.8231]
[1753879597832,3.2078,3771.0,3770.9,6.2911]
[1753879598032,4.8156,3771.0,3770.9,6.2911]
[1753879598333,47.9859,3771.0,3770.9,6.2911]
[1753879599529,3.9781,3771.0,3770.9,6.2911]
[1753879599729,0.5801,3771.0,3770.9,6.2911]
[1753879600428,0.5801,3771.3,3771.2,6.82148]
[1753879600936,3.2078,3771.6,3771.5,6.82144]
[1753879601140,3.9781,3772.0,3771.9,6.82137]
[1753879601439,3.0828,3772.0,3771.9,6.82137]
[1753879601641,3.9781,3772.0,3771.9,6.82137]
[1753879602337,3.0828,3772.0,3771.9,6.82137]
[1753879602539,4.5632,3772.3,3772.2,2.04584]
[1753879602741,5.25789932,3772.3,3772.2,2.8881]
[1753879603043,5.25789932,3772.3,3772.2,1.5156]
[1753879603643,4.5632,3772.3,3772.2,1.5156]
[1753879604238,4.5632,3772.3,3772.2,2.8881]
[1753879605145,4.5632,3772.3,3772.2,6.2911]
[1753879605346,3.0828,3772.3,3772.2,6.2911]
[1753879605647,3.2078,3772.4,3772.3,6.82133]
[1753879606140,3.2078,3772.9,3772.8,6.2911]
[1753879606339,3.90271587,3772.9,3772.8,6.2911]
[1753879606737,44.70271587,3772.9,3772.8,6.2911]
[1753879607634,46.17771587,3772.9,3772.8,6.2911]
[1753879608343,45.4828,3772.9,3772.8,6.2911]
[1753879608548,3.7879,3772.9,3772.8,6.2911]
[1753879608845,0.5801,3772.9,3772.8,6.2911]
[1753879609042,3.0828,3773.2,3773.1,0.5854]
[1753879609247,4.89777174,3773.2,3773.1,3.8021]
[1753879609641,0.69487174,3773.2,3773.1,6.2911]
[1753879609838,2.5951,3773.1,3772.5,2.2865]
[1753879610042,4.5632,3773.0,3772.9,5.35323]
[1753879610245,4.2029,3773.0,3772.9,6.82123]
[1753879610640,4.2029,3773.0,3772.9,6.2911]
[1753879610839,4.5632,3773.0,3772.9,6.2911]
[1753879611442,2.3703,3772.9,3772.1,2.2865]
[1753879611644,4.2029,3772.3,3772.2,6.82133]
[1753879611946,3.0828,3772.6,3772.5,3.0668]
[1753879612144,3.9781,3772.6,3772.5,6.2911]
[1753879612749,4.2029,3772.6,3772.5,6.2911]
[1753879613741,0.8953,3772.6,3772.0,3.2078]
[1753879613943,3.0828,3772.1,3772.0,8.1264]
[1753879614342,4.5632,3772.1,3772.0,1.5156]
[1753879614947,4.5632,3772.1,3772.0,2.8881]
[1753879616151,4.5632,3772.1,3772.0,4.8231]
[1753879616736,4.5632,3772.1,3772.0,6.2911]
[1753879616936,3.2078,3772.5,3772.4,4.8231]
[1753879616937,7.9409,3772.5,3772.4,4.8231]
[1753879617147,8.3012,3772.5,3772.4,1.5156]
[1753879617348,8.3012,3772.5,3772.4,0.9302]
[1753879617646,0.53023,3772.3,3772.1,1.2643]
[1753879617844,4.5167,3772.2,3772.1,3.6027]
[1753879618043,4.5167,3772.2,3772.1,4.6098]
[1753879618240,4.5167,3772.2,3772.1,6.0433]
[1753879618844,2.07297,3772.8,3772.7,2.4825]
[1753879619046,5.04687,3772.8,3772.7,5.1803]
[1753879619240,5.04687,3772.8,3772.7,3.7468]
[1753879619946,1.5183,3772.8,3772.7,2.4825]
[1753879620151,2.6187,3772.8,3772.1,3.73803]
[1753879620348,1.4836,3772.7,3772.1,3.73803]
[1753879620652,0.9376,3772.3,3772.2,6.0433]
[1753879620950,24.1564,3773.0,3772.9,6.0433]
[1753879621144,3.813,3773.0,3772.9,6.0433]
[1753879621355,7.3693,3773.0,3772.9,6.0433]
[1753879621648,6.2342,3773.0,3772.9,6.0433]
[1753879621855,4.7506,3773.0,3772.9,6.0433]
[1753879622147,3.2078,3773.5,3773.4,0.863]
[1753879622351,3.40540481,3773.5,3773.4,3.5608]
[1753879622549,3.2078,3773.5,3773.4,3.5608]
[1753879623746,0.2,3773.9,3773.8,3.5608]
[1753879623952,0.2,3773.9,3773.8,6.7686]
[1753879624247,0.0168,3774.3,3773.8,6.7686]
[1753879624248,0.0168,3774.3,3774.2,3.5608]
[1753879624446,0.44014872,3774.3,3774.2,3.5608]
[1753879624645,0.21451137,3774.3,3774.2,3.5608]
[1753879624849,0.21451137,3774.3,3774.2,6.7686]
[1753879627242,0.21451137,3774.3,3774.2,1.2643]
[1753879627243,2.61121137,3774.3,3774.2,1.2643]
[1753879627448,2.61121137,3774.3,3774.2,2.1273]
[1753879627449,3.05891096,3774.3,3774.2,2.1273]
[1753879627647,0.44021096,3774.3,3774.2,4.09074]
[1753879627845,0.44021096,3774.3,3774.2,7.29854]
[1753879629050,0.44021096,3774.3,3774.2,6.7686]
[1753879629354,3.05871096,3774.3,3774.2,2.1273]
[1753879629851,3.05871096,3774.3,3774.2,3.5608]
[1753879630055,2.6185,3773.9,3773.4,3.73784]
[1753879630255,0.19771137,3773.8,3773.5,2.1273]
[1753879630455,2.6185,3773.6,3773.5,2.1273]
[1753879630752,0.19771137,3773.6,3773.5,4.09084]
[1753879631352,0.0168,3774.3,3774.2,4.09074]
[1753879631652,0.0168,3774.3,3774.2,3.5608]
[1753879631653,0.24252782,3774.3,3774.2,3.5608]
[1753879631846,1.72612782,3774.3,3774.2,3.5608]
[1753879632043,0.24252782,3774.3,3774.2,3.5608]
[1753879632242,1.72612782,3774.3,3774.2,3.5608]
[1753879632453,0.24252782,3774.3,3774.2,3.5608]
[1753879634154,1.5004,3774.3,3774.2,3.5608]
[1753879634356,0.0168,3774.3,3774.2,3.5608]
[1753879638449,2.4135,3774.3,3774.2,3.5608]
[1753879638653,2.833,3774.3,3774.2,2.1273]
[1753879638959,2.833,3774.3,3774.0,0.52997]
[1753879638960,2.8162,3774.2,3774.0,0.52997]
[1753879639254,2.8162,3774.1,3773.9,3.2078]
[1753879639456,2.8162,3773.7,3773.6,1.79431]
[1753879639650,2.8162,3773.5,3773.4,3.2078]
[1753879639856,1.3326,3773.5,3773.4,3.73785]
[1753879640053,0.9131,3774.0,3773.9,0.52997]
[1753879640251,0.0168,3774.3,3774.1,0.52995]
[1753879640451,1.4836,3774.1,3773.6,2.1273]
[1753879640755,0.9131,3773.5,3773.3,2.65736]
[1753879640955,2.8162,3773.4,3773.3,1.2643]
[1753879641255,1.3326,3773.2,3773.1,0.53009]
[1753879641455,2.8162,3773.2,3773.1,0.53009]
[1753879641852,2.8162,3773.2,3773.1,1.79439]
[1753879642051,2.8162,3773.2,3773.1,2.65739]
[1753879642356,2.3967,3773.2,3773.1,4.09089]
[1753879642552,2.8162,3773.6,3773.5,0.53004]
[1753879642750,2.3967,3773.6,3773.5,3.5608]
[1753879642954,2.8162,3773.6,3773.5,1.2643]
[1753879643352,2.99836849,3773.6,3773.5,1.2643]
[1753879643562,2.99836849,3773.6,3773.5,2.1273]
[1753879643855,0.53005,3773.5,3773.1,0.53009]
[1753879644047,0.71222849,3773.4,3773.0,3.73791]
[1753879644247,2.8162,3773.2,3773.1,2.65738]
[1753879644453,2.99836849,3773.2,3773.1,4.09088]
[1753879644754,2.99836849,3773.2,3773.1,2.1273]
[1753879645054,2.8162,3773.1,3773.0,3.2078]
[1753879645257,3.34629,3773.1,3772.8,0.53013]
[1753879645455,2.99838394,3773.0,3772.7,2.65744]
[1753879645651,2.8162,3772.7,3772.6,3.2078]
[1753879646253,2.8162,3772.3,3772.2,4.4721]
[1753879646460,1.4836,3772.3,3772.2,6.7686]
[1753879647057,2.3967,3772.3,3772.2,6.7686]
[1753879647250,2.8171,3772.3,3772.2,4.4721]
[1753879648364,2.8171,3772.3,3772.2,3.2078]
[1753879648565,2.6986,3772.2,3772.0,0.53025]
[1753879648763,2.6986,3772.1,3771.9,2.34854486]
[1753879648957,2.6986,3772.2,3771.9,0.53025]
[1753879649154,2.6986,3772.2,3772.1,0.53024]
[1753879649461,2.6986,3772.2,3772.1,1.81154]
[1753879650059,2.2782,3772.2,3772.1,4.13014]
[1753879650357,2.2782,3772.2,3772.1,7.41982347]
[1753879650558,2.2782,3772.2,3772.1,9.82662347]
[1753879650559,4.2835,3772.2,3772.1,9.82662347]
[1753879650864,4.9561,3772.2,3772.1,9.29638347]
[1753879651359,4.9561,3772.2,3772.1,6.0067]
[1753879653556,4.9561,3772.2,3772.1,4.6017]
[1753879655274,4.9561,3772.2,3772.1,6.0067]
[1753879656170,3.0001,3772.2,3772.1,6.0067]
[1753879656366,3.8631,3772.2,3772.1,6.0067]
[1753879656563,4.9561,3772.2,3772.1,1.4366]
[1753879656767,4.9561,3771.9,3771.8,3.4909602]
[1753879656961,1.08628358,3771.9,3771.8,4.85067352]
[1753879657368,41.88628358,3771.9,3771.8,4.85067352]
[1753879657868,41.88628358,3771.9,3771.8,0.1961902]
[1753879658071,41.88628358,3771.9,3771.8,3.49937779]
[1753879658460,41.88628358,3771.9,3771.8,0.1961902]
[1753879658672,47.18872137,3771.9,3771.8,0.1961902]
[1753879659171,49.46692137,3771.9,3771.8,0.1961902]
[1753879660776,44.16448358,3771.9,3771.8,0.1961902]
[1753879661066,44.16448358,3771.9,3771.8,6.2028902]
[1753879661365,3.0001,3772.3,3772.2,6.0067]
[1753879661571,3.8631,3772.3,3772.2,3.22625981]
[1753879661772,54.96553779,3772.3,3772.2,2.35925981]
[1753879661970,2.02312,3772.2,3772.1,0.79865981]
[1753879662168,1.13687,3771.9,3771.8,0.1961902]
[1753879662466,5.90847553,3771.9,3771.8,0.1961902]
[1753879662675,46.10187553,3771.9,3771.8,6.2028902]
[1753879662863,40.8,3771.9,3771.8,6.2028902]
[1753879663068,41.5474,3771.9,3771.8,4.9215902]
[1753879663472,41.5474,3771.9,3771.8,0.1961902]
[1753879663774,40.8,3771.9,3771.8,6.2028902]
[1753879664172,1.13681,3772.3,3772.2,2.4068]
[1753879664372,1.13681,3772.3,3772.2,6.0067]
[1753879664573,41.4066,3772.3,3772.2,6.0067]
[1753879668375,3.2078,3772.7,3772.6,1.8372]
[1753879668574,1.32514,3773.4,3772.8,0.5696]
[1753879668779,1.1367,3773.1,3773.0,4.6017]
[1753879668985,1.1367,3773.1,3773.0,6.0067]
[1753879669478,0.6066,3773.1,3773.0,6.0067]
[1753879670977,40.8,3773.3,3773.2,6.0067]
[1753879671179,1.13659,3773.8,3773.7,4.5235]
[1753879671377,19.9886,3773.8,3773.7,6.0067]
[1753879671572,3.73778,3773.9,3773.7,6.0067]
[1753879671879,1.13658,3773.9,3773.8,6.0067]
[1753879672079,41.4066,3773.9,3773.8,6.0067]
[1753879672681,41.4066,3773.9,3773.8,4.7254]
[1753879672882,0.6066,3773.9,3773.8,6.53669]
[1753879673076,0.6066,3774.1,3774.0,2.93676]
[1753879673377,41.52340741,3774.1,3774.0,2.4068]
[1753879673681,40.8,3774.1,3774.0,2.4068]
[1753879674081,40.8,3774.1,3774.0,6.0067]
[1753879674978,0.6066,3773.8,3773.7,4.1695]
[1753879675279,0.6066,3773.8,3773.7,6.0067]
[1753879676376,1.3451449,3773.8,3773.7,6.0067]
[1753879676771,1.354,3773.7,3773.1,4.1214]
[1753879676978,0.6066,3773.2,3773.1,9.2145]
[1753879679781,0.6066,3773.2,3773.1,6.0067]
[1753879679978,1.34514371,3773.2,3773.1,6.0067]
[1753879680584,2.09154371,3773.2,3773.1,1.7806]
[1753879680784,2.09154371,3773.2,3773.1,4.9308]
[1753879680984,0.6066,3773.2,3773.1,6.2685]
[1753879681182,0.6066,3773.2,3773.1,5.244]
[1753879681382,1.353,3773.2,3773.1,2.3843]
[1753879681589,19.9636,3773.2,3772.9,0.871]
[1753879681780,0.5822,3772.4,3772.3,9.4952]
[1753879681981,0.53018,3772.5,3772.3,9.4952]
[1753879682182,0.53018,3772.5,3772.4,6.2874]
[1753879682681,0.7464,3772.9,3772.8,2.5567]
[1753879682682,1.11233,3772.9,3772.8,2.5567]
[1753879682883,1.11233,3772.9,3772.8,6.2874]
[1753879683879,0.53011,3773.0,3772.9,6.2874]
[1753879684080,1.11231,3773.0,3772.9,6.2874]
[1753879684285,1.85871,3773.0,3772.9,6.2874]
[1753879684479,1.85871,3773.0,3772.9,4.9497]
[1753879684680,1.11235,3772.7,3772.6,0.871]
[1753879684880,1.11239,3772.4,3772.3,3.2078]
[1753879685086,0.5822,3772.4,3772.3,6.2874]
[1753879685296,0.5822,3772.4,3772.3,3.7409]
[1753879685476,41.3822,3772.4,3772.3,6.2874]
[1753879686079,40.8,3772.4,3772.3,6.2874]
[1753879686292,40.8,3772.4,3772.3,9.4952]
[1753879686983,40.8,3772.4,3772.3,1.4747]
[1753879687183,40.8,3772.4,3772.3,0.871]
[1753879687378,41.5464,3772.4,3772.3,0.871]
[1753879687688,41.5464,3772.4,3772.3,6.2874]
[1753879687888,40.8,3772.4,3772.3,6.2874]
[1753879689785,60.143,3772.4,3772.3,6.2874]
[1753879690683,60.8894,3772.4,3772.3,6.2874]
[1753879690886,1.11245,3772.0,3771.9,5.7645]
[1753879691493,1.11245,3772.0,3771.9,9.4952]
[1753879691888,1.11245,3772.0,3771.9,6.2874]
[1753879693086,0.5822,3772.0,3771.9,6.2874]
[1753879693993,41.33019,3772.4,3772.3,6.2874]
[1753879694483,40.8,3772.4,3772.3,6.2874]
[1753879694688,0.53017,3772.6,3772.5,6.2874]
[1753879694882,20.44637,3772.6,3772.5,6.2874]
[1753879695292,20.44967,3772.6,3772.5,6.2874]
[1753879695593,1.11567,3772.6,3772.5,6.2874]
[1753879695888,1.11777,3772.6,3772.5,6.2874]
[1753879696290,0.53024,3772.1,3772.0,4.9497]
[1753879696494,21.19644,3772.1,3772.0,4.9497]
[1753879696990,20.44784,3772.1,3772.0,6.2874]
[1753879697593,19.65694541,3772.1,3772.0,6.2874]
[1753879697897,19.65904541,3772.1,3772.0,6.2874]
[1753879699199,3.79,3772.6,3772.5,2.5567]
[1753879699389,19.324,3772.6,3772.5,2.5567]
[1753879699591,0.53014,3772.8,3772.7,2.393]
[1753879699793,19.85414,3772.8,3772.7,6.2874]
[1753879700396,41.3301,3773.1,3773.0,6.2874]
[1753879700595,60.6521,3773.1,3773.0,6.2874]
[1753879700898,65.95327288,3773.1,3773.0,6.2874]
[1753879701101,60.6521,3773.1,3773.0,6.2874]
[1753879701898,1.11774,3772.7,3772.6,9.4952]
[1753879702292,1.11564,3772.7,3772.6,9.4952]
[1753879702493,1.11241,3772.2,3772.1,6.2874]
[1753879702688,1.32751,3772.6,3770.9,19.317]
[1753879702689,0.0033,3771.9,3771.8,0.7264502]
[1753879702892,0.53023,3772.2,3772.0,0.53023]
[1753879703190,0.53019,3772.4,3772.2,0.53021]
[1753879703394,0.53019,3772.4,3772.3,6.2874]
[1753879703595,1.11779,3772.4,3772.3,6.2874]
[1753879704090,0.53024,3772.0,3771.9,1.5322]
[1753879704404,1.11784,3772.0,3771.9,3.0542]
[1753879704598,1.11784,3772.0,3771.9,3.9252]
[1753879704799,1.11784,3772.0,3771.9,4.9497]
[1753879704990,1.11574,3772.0,3771.9,6.2874]
[1753879705196,0.53024,3772.0,3771.9,6.2874]
[1753879705398,1.11244,3772.0,3771.9,6.2874]
[1753879705704,1.11574,3772.0,3771.9,6.2874]
[1753879706504,1.11784,3772.0,3771.9,6.2874]
[1753879706699,1.11574,3772.0,3771.9,6.2874]
[1753879706900,0.53024,3772.0,3771.9,6.2874]
[1753879709208,1.10234,3772.0,3771.9,6.2874]
[1753879710701,41.90234,3772.0,3771.9,6.2874]
[1753879712606,41.90234,3772.0,3771.9,4.9497]
[1753879713205,41.90234,3772.0,3771.9,6.2185]
[1753879714001,0.002,3771.9,3771.8,0.1961902]
[1753879714202,23.5629,3771.9,3771.8,0.1961902]
[1753879714404,23.5629,3771.9,3771.8,1.1289902]
[1753879714604,23.5629,3771.9,3771.8,5.0899902]
[1753879714905,23.0729,3771.9,3771.8,5.0899902]
[1753879715313,23.0729,3771.9,3771.8,6.3587902]
[1753879715803,23.0729,3771.9,3771.8,5.0899902]
[1753879716109,20.3551,3771.9,3771.8,0.1961902]
[1753879716308,23.5629,3771.9,3771.8,1.1289902]
[1753879717210,23.5629,3771.9,3771.8,2.6374902]
[1753879717502,3.7747,3771.9,3771.8,6.3587902]
[1753879717808,19.289,3771.9,3771.8,6.3587902]
[1753879718102,40.8,3772.0,3771.9,4.2426]
[1753879718313,3.2078,3772.3,3772.2,2.4525]
[1753879718610,0.53013,3772.9,3772.8,5.2298]
[1753879718799,3.2078,3773.2,3773.1,2.4525]
[1753879718999,0.94765343,3774.2,3773.7,3.9153]
[1753879719204,20.55312108,3774.1,3774.0,1.8554]
[1753879719513,20.55312108,3774.1,3774.0,6.1626]
[1753879720706,0.74017108,3774.1,3774.0,6.1626]
[1753879720907,0.0168,3774.3,3774.2,6.1626]
[1753879722105,0.0168,3774.3,3774.2,11.1626]
[1753879722510,0.0168,3774.3,3774.2,6.1626]
[1753879722704,60.60485,3774.8,3774.2,11.1626]
[1753879722916,0.52984,3774.9,3774.8,5.2298]
[1753879723106,0.70047803,3774.9,3774.8,6.1626]
[1753879725417,0.17063803,3774.9,3774.8,6.1626]
[1753879726417,0.70046803,3774.9,3774.8,6.1626]
[1753879726610,0.52983,3774.9,3774.8,6.1626]
[1753879727613,1.52982,3775.0,3774.8,2.4525]
[1753879727917,1.52982,3775.0,3774.9,6.1626]
[1753879729511,0.52984,3774.8,3774.7,4.1406]
[1753879729820,3.43464,3774.8,3774.7,4.7377]
[1753879730016,3.43464,3774.8,3774.7,2.3981]
[1753879730209,3.43464,3774.8,3774.7,6.1626]
[1753879730414,3.4347,3774.4,3774.3,7.1688]
[1753879730608,3.38586,3774.0,3773.9,8.4376]
[1753879730916,3.41596,3774.0,3773.9,9.3704]
[1753879732619,3.43476,3774.0,3773.9,9.3704]
[1753879732819,0.52996,3774.0,3773.9,9.3704]
[1753879733313,1.377,3774.3,3773.9,5.6603]
[1753879733520,19.77886,3774.7,3774.6,6.1626]
[1753879733815,22.8539761,3774.7,3774.6,6.1626]
[1753879734214,22.8539761,3774.7,3774.6,4.8938]
[1753879734409,3.41593,3774.2,3774.1,9.3704]
[1753879734917,3.38583,3774.2,3774.1,3.2078]
[1753879735222,3.92477,3773.9,3773.8,0.9328]
[1753879735422,22.67077,3773.9,3773.8,4.0256]
[1753879735617,63.47077,3773.9,3773.8,4.0256]
[1753879736117,3.43481,3773.6,3773.5,4.7377]
[1753879736313,3.43481,3773.6,3773.5,8.1016]
[1753879736513,3.43481,3773.6,3773.5,9.3704]
[1753879736917,3.92481,3773.6,3773.5,6.2462]
[1753879737220,3.43481,3773.6,3773.5,4.7377]
[1753879737418,0.53001,3773.6,3773.5,9.4254]
[1753879738018,3.38991,3773.6,3773.5,9.4254]
[1753879738619,3.38991,3773.6,3773.5,8.0259]
[1753879738821,3.38991,3773.6,3773.5,4.8181]
[1753879740224,0.53001,3773.6,3773.5,6.2176]
[1753879740515,0.52999,3773.8,3773.7,2.2782]
[1753879740722,0.5299,3774.4,3774.3,2.448]
[1753879741020,60.5539,3774.4,3774.3,6.1257]
[1753879741224,61.9349,3774.4,3774.3,6.1257]
[1753879741619,62.4797,3774.4,3774.3,6.1257]
[1753879741925,2.84206,3774.0,3773.9,6.2278]
[1753879742125,4.76786,3774.0,3773.9,8.4849]
[1753879742418,5.25546,3774.0,3773.9,4.0564]
[1753879742722,4.76786,3774.0,3773.9,9.3335]
[1753879742917,1.38106,3774.0,3773.9,9.3335]
[1753879743117,4.76786,3774.0,3773.9,4.7262]
[1753879743419,24.47646,3774.0,3773.9,0.8486]
[1753879743717,23.98886,3774.0,3773.9,4.6961]
[1753879744023,23.44406,3774.0,3773.9,6.1257]
[1753879744319,4.22306,3774.0,3773.9,6.1257]
[1753879744518,1.86962,3774.3,3773.9,6.1257]
[1753879744519,0.52995,3774.1,3773.9,3.2966]
[1753879744722,0.52995,3774.1,3774.0,6.1257]
[1753879745117,0.53454938,3774.6,3774.5,1.8586]
[1753879745324,1.97494938,3774.6,3774.5,9.3335]
[1753879745512,3.35594938,3774.6,3774.5,9.3335]
[1753879747320,0.00467938,3774.6,3774.5,9.3335]
[1753879750122,40.8,3774.9,3774.8,2.448]
[1753879750531,1.0,3775.0,3774.9,6.1257]
[1753879750827,2.84197,3774.7,3774.6,9.3335]
[1753879751130,1.97024,3774.9,3774.8,6.1257]
[1753879751323,1.38094,3774.9,3774.8,6.1257]
[1753879751524,4.76774,3774.9,3774.8,4.7262]
[1753879751726,5.69966,3774.7,3774.6,5.486]
[1753879752119,5.69966,3774.7,3774.6,3.2078]
[1753879752430,4.2379,3774.3,3774.2,7.0764]
[1753879752625,0.5299,3774.4,3774.2,9.3335]
[1753879752840,0.5299,3774.4,3774.3,6.1257]
[1753879754331,22.0164,3774.8,3774.7,6.1257]
[1753879754531,19.72485,3774.8,3774.7,9.3335]
[1753879754725,0.5299,3774.4,3774.3,4.7982]
[1753879755029,0.52989,3774.6,3774.5,6.1257]
[1753879756227,0.52985,3774.8,3774.5,2.448]
[1753879756425,0.52985,3774.8,3774.7,2.448]
[1753879756632,0.52985,3774.8,3774.7,6.1257]
[1753879757226,1.91084,3774.9,3774.7,6.65555]
[1753879757430,2.8214,3774.9,3774.8,9.3335]
[1753879757631,42.32983,3775.0,3774.8,6.18563]
[1753879757831,42.32983,3775.0,3774.9,6.1257]
[1753879758228,43.71083,3775.0,3774.9,6.1257]
[1753879758430,45.18753,3775.0,3774.9,4.7262]
[1753879758624,5.1698,3774.9,3774.8,3.2078]
[1753879758830,5.69969,3774.5,3774.4,3.8686]
[1753879759033,5.1698,3774.4,3774.3,3.2078]
[1753879759230,2.3121,3774.2,3774.1,0.8486]
[1753879759528,2.8214,3774.2,3774.1,6.1257]
[1753879759734,1.4404,3774.2,3774.1,6.1257]
[1753879760122,0.52988,3774.6,3774.5,2.448]
[1753879760334,0.52988,3774.6,3774.5,5.6558]
[1753879761037,0.52988,3774.6,3774.5,9.3335]
[1753879761232,4.22298,3774.6,3774.5,9.3335]
[1753879761433,4.76778,3774.6,3774.5,9.3335]
[1753879762435,4.22298,3774.6,3774.5,9.3335]
[1753879762633,1.97028,3774.6,3774.5,9.3335]
[1753879763029,19.70188,3774.6,3774.5,3.2078]
[1753879763228,4.2394,3773.9,3773.8,4.6961]
[1753879763428,4.2394,3773.9,3773.8,9.3335]
[1753879763825,4.76937,3773.9,3773.8,3.2078]
[1753879764026,5.70127,3773.9,3773.8,3.2078]
[1753879764834,24.86927,3773.9,3773.8,3.2078]
[1753879765032,65.66927,3773.9,3773.8,3.2078]
[1753879765430,64.19197,3773.9,3773.8,5.6558]
[1753879765635,61.93837,3773.9,3773.8,9.3335]
[1753879766139,63.86477,3773.9,3773.8,7.934]
[1753879766335,64.79667,3773.9,3773.8,6.5044]
[1753879766540,40.8,3773.9,3773.8,9.3335]
[1753879766730,0.52997,3774.0,3773.8,9.3335]
[1753879766930,0.52997,3774.0,3773.9,6.1257]
[1753879767130,19.69295,3774.1,3773.9,6.1257]
[1753879767340,20.30695,3774.1,3774.0,6.1093]
[1753879767532,23.48795,3774.1,3774.0,6.1093]
[1753879767733,64.28795,3774.1,3774.0,6.1093]
[1753879768237,45.66965,3774.1,3774.0,6.1093]
[1753879768737,40.8,3774.1,3774.0,6.1093]
[1753879769129,42.1834,3774.1,3774.0,4.727]
[1753879769332,42.1834,3774.1,3774.0,2.4109]
[1753879769529,43.634,3774.1,3774.0,1.4386]
[1753879770138,42.7281,3774.1,3774.0,6.1093]
[1753879772445,61.8841,3774.1,3774.0,6.1093]
[1753879773938,20.5394,3774.1,3774.0,6.1093]
[1753879774142,22.0795,3774.1,3774.0,6.1093]
[1753879774343,22.951,3774.1,3774.0,6.1093]
[1753879775643,21.06935,3774.1,3773.9,0.52997]
[1753879775944,23.48095,3774.1,3774.0,6.1093]
[1753879776147,23.48095,3774.1,3774.0,0.873]
[1753879776445,24.93155,3774.1,3774.0,3.8199]
[1753879776635,24.93155,3774.1,3774.0,4.727]
[1753879777135,5.77555,3774.1,3774.0,6.1093]
[1753879777346,4.86965,3774.1,3773.9,0.52997]
[1753879779749,61.8641,3774.2,3774.1,6.1093]
[1753879780241,2.9235,3774.7,3774.6,6.63917]
[1753879780440,3.9235,3775.0,3774.9,2.445]
[1753879780743,62.4731,3775.0,3774.9,6.1093]
[1753879781637,62.4731,3775.0,3774.8,3.73765]
[1753879781638,3.39873,3774.9,3774.8,3.2078]
[1753879781844,5.77543,3774.9,3774.8,6.128]
[1753879782044,5.77543,3774.9,3774.8,4.7457]
[1753879782244,11.07351341,3774.9,3774.8,3.2078]
[1753879782851,2.3275,3774.4,3774.3,1.4386]
[1753879783043,24.9025,3774.4,3774.3,1.4386]
[1753879783243,5.77557,3773.9,3773.8,3.2078]
[1753879783542,5.77557,3773.9,3773.8,3.7734]
[1753879783747,44.595,3773.9,3773.8,9.3171]
[1753879784144,42.3401,3773.9,3773.8,9.3171]
[1753879784339,40.8,3773.9,3773.8,9.3171]
[1753879784544,41.32997,3773.9,3773.8,9.3171]
[1753879784949,40.8,3773.9,3773.8,9.3171]
[1753879785146,42.1834,3773.9,3773.8,9.3171]
[1753879785344,43.634,3773.9,3773.8,5.6187]
[1753879785648,43.634,3773.9,3773.8,3.2078]
[1753879785947,0.53004,3773.4,3773.3,4.0808]
[1753879786250,4.86974,3773.4,3773.3,6.1093]
[1753879786645,45.66974,3773.4,3773.3,6.1093]
[1753879786949,5.7757,3773.0,3772.9,3.2078]
[1753879787247,24.3626,3773.0,3772.9,3.2078]
[1753879787443,24.8927,3773.0,3772.9,3.2078]
[1753879787640,65.6927,3773.0,3772.9,3.2078]
[1753879791151,65.6927,3773.0,3772.9,6.0554]
[1753879791357,65.6927,3773.0,3772.9,9.3171]
[1753879791550,65.6927,3773.0,3772.9,3.2078]
[1753879792245,65.6927,3773.0,3772.6,2.282]
[1753879792246,4.86984,3772.7,3772.6,4.727]
[1753879792447,24.88674,3772.7,3772.6,4.727]
[1753879792848,24.88674,3772.7,3772.6,6.1093]
[1753879793654,4.3195,3772.6,3772.5,3.2078]
[1753879793848,5.2456,3772.6,3772.5,7.0277]
[1753879794155,19.64114,3772.7,3772.5,9.3171]
[1753879794452,19.64114,3772.7,3772.6,6.1093]
[1753879795948,19.63314,3772.7,3772.6,6.1093]
[1753879796455,0.53014,3772.7,3772.6,6.1093]
[1753879796853,0.53014,3772.8,3772.6,6.1093]
[1753879797048,0.53009,3773.1,3773.0,2.5044]
[1753879797253,0.53009,3773.1,3773.0,9.4148]
[1753879797947,41.33008,3773.2,3773.1,0.53008]
[1753879798153,1.1023,3773.7,3773.6,6.207]
[1753879798353,20.2003,3773.7,3773.6,6.207]
[1753879798553,60.428,3773.7,3773.6,6.207]
[1753879798755,40.8,3773.7,3773.6,6.207]
[1753879798954,0.52993,3774.2,3774.1,3.7664]
[1753879799260,0.52993,3774.2,3774.1,6.207]
[1753879799850,19.62592,3774.3,3774.1,6.73693]
[1753879800054,19.62592,3774.3,3774.2,6.207]
[1753879800253,19.62592,3774.3,3773.7,1.3821]
[1753879800254,0.52999,3773.8,3773.7,1.3821]
[1753879800556,5.68371,3773.6,3773.5,3.2078]
[1753879801260,24.77371,3773.6,3773.5,3.2078]
[1753879801456,5.68371,3773.6,3773.5,3.2078]
[1753879801761,5.68377,3773.2,3773.1,4.8249]